bitfinex-derivatives/quotes_ETHF0:USTF0_20250116
["timestamp","ask_amount","ask_price","bid_price","bid_amount"]
[1737026568284,1.49862,3337.0,3336.5,1.321]
[1737026568685,1.49862,3337.0,3336.8,0.59945]
[1737026568686,0.59946,3336.9,3336.8,0.59945]
[1737026569293,5.85485478,3337.0,3336.5,1.321]
[1737026569494,5.85485478,3337.0,3336.9,0.59945]
[1737026570194,5.85485478,3337.0,3336.7,0.4936]
[1737026570195,0.59942,3337.1,3337.0,0.59942]
[1737026570390,6.45424478,3337.3,3337.2,0.5994]
[1737026570592,6.45424478,3337.3,3337.2,1.321]
[1737026571302,0.59941,3337.1,3337.0,1.321]
[1737026571496,3.80721,3337.1,3337.0,1.321]
[1737026571695,0.59952,3336.5,3336.4,0.59953]
[1737026571897,0.59952,3336.5,3336.4,1.92054]
[1737026572098,0.59952,3336.5,3336.4,1.321]
[1737026572400,3.2078,3336.7,3336.4,1.321]
[1737026572598,0.4782,3336.8,3336.7,0.59949]
[1737026572797,3.2078,3337.1,3336.6,2.82251708]
[1737026572997,5.85485478,3336.8,3336.7,1.06669]
[1737026574097,0.59942,3337.1,3336.8,0.59947]
[1737026574301,0.59941,3337.2,3337.1,0.5994]
[1737026574505,0.59941,3337.2,3337.1,1.9204]
[1737026574704,0.59941,3337.2,3337.1,1.321]
[1737026575994,6.30815478,3337.4,3336.7,0.4672]
[1737026576200,0.59945,3336.9,3336.8,1.321]
[1737026576708,3.2078,3337.1,3336.8,1.321]
[1737026577004,0.59943,3337.0,3336.8,1.321]
[1737026577302,9.06265478,3337.1,3336.8,1.321]
[1737026577501,9.66208478,3337.1,3337.0,0.59943]
[1737026577901,9.06265478,3337.1,3336.7,2.82251708]
[1737026578099,0.59945,3336.9,3336.8,1.321]
[1737026578502,0.59952,3336.6,3336.5,0.59949]
[1737026578701,0.59952,3336.6,3336.5,1.92049]
[1737026579201,3.2078,3336.7,3336.5,1.321]
[1737026579408,3.2078,3337.1,3336.7,0.59949]
[1737026579700,5.85485478,3336.8,3336.7,0.59949]
[1737026579903,6.45432478,3336.8,3336.7,0.59949]
[1737026580103,5.85485478,3336.8,3336.7,0.59949]
[1737026580797,5.85485478,3337.0,3336.9,0.59945]
[1737026581193,0.59951,3336.7,3336.4,3.2078]
[1737026581395,0.59951,3336.7,3336.6,0.59949]
[1737026581602,0.59947,3336.9,3336.8,0.59945]
[1737026581997,0.59944,3337.0,3336.9,0.59943]
[1737026582199,9.06265478,3337.1,3337.0,0.59943]
[1737026582398,9.66206478,3337.1,3337.0,0.59943]
[1737026583200,9.06265478,3337.1,3337.0,0.59943]
[1737026583400,9.66206478,3337.1,3337.0,0.59943]
[1737026583805,9.06265478,3337.1,3336.6,1.49875]
[1737026584101,3.80723,3337.1,3337.0,0.59943]
[1737026584703,3.2078,3337.1,3337.0,0.59943]
[1737026585401,5.85485478,3337.2,3337.1,0.59941]
[1737026586205,5.85485478,3337.2,3337.1,6.62972708]
[1737026586605,5.85485478,3337.6,3337.5,0.59934]
[1737026586908,6.45417478,3337.6,3337.5,1.32]
[1737026587501,5.85485478,3337.6,3337.1,6.03031708]
[1737026587704,0.59938,3337.3,3337.2,1.32]
[1737026588910,0.59938,3337.3,3337.2,1.9194]
[1737026589109,0.59938,3337.3,3337.2,1.32]
[1737026589512,0.948,3337.5,3336.7,1.32]
[1737026589700,0.5995,3336.7,3336.6,0.59948]
[1737026589905,0.59947,3336.9,3336.8,0.59945]
[1737026590104,0.4793,3337.0,3336.0,4.69732809]
[1737026590411,0.59955,3336.4,3336.3,0.59954]
[1737026591308,1.09254,3336.5,3336.4,0.59954]
[1737026591607,0.59955,3336.4,3336.3,0.59955]
[1737026592017,0.493,3336.5,3335.9,2.82251708]
[1737026592305,0.493,3336.5,3335.5,1.49925]
[1737026592306,3.2078,3336.1,3335.3,9.40447809]
[1737026592511,3.2078,3335.7,3335.3,4.69732809]
[1737026592702,0.4523,3335.6,3335.3,4.69732809]
[1737026592903,3.2078,3335.7,3335.3,4.69732809]
[1737026593104,0.9045,3336.0,3335.6,3.2078]
[1737026593317,0.9045,3336.0,3335.7,0.59967]
[1737026593514,0.9045,3336.0,3335.6,1.321]
[1737026594009,0.9045,3336.0,3335.9,0.59963]
[1737026594010,0.4462,3336.0,3335.9,0.59963]
[1737026594410,6.93755827,3336.2,3335.6,1.321]
[1737026594611,6.93755827,3336.2,3336.1,0.59959]
[1737026594909,0.59956,3336.3,3336.2,0.59957]
[1737026595313,3.80735,3336.4,3336.3,0.59956]
[1737026595507,0.59956,3336.3,3336.2,0.59957]
[1737026595707,3.2078,3336.4,3335.8,2.82251708]
[1737026595907,3.2078,3336.4,3336.3,0.59956]
[1737026596213,3.80734,3336.4,3336.3,0.59956]
[1737026596621,3.80734,3336.4,3335.8,2.82251708]
[1737026596809,3.2078,3336.4,3335.8,2.82251708]
[1737026597116,9.06376701,3336.4,3335.8,2.82251708]
[1737026597318,0.59956,3336.3,3336.2,0.59957]
[1737026597519,9.06376701,3336.4,3335.8,2.82251708]
[1737026598105,9.06376701,3336.4,3335.5,4.70704]
[1737026598106,9.06376701,3336.4,3335.5,3.2078]
[1737026598311,3.80742,3336.0,3335.9,0.59963]
[1737026598522,3.2078,3336.0,3335.9,0.59963]
[1737026600722,5.85596701,3336.2,3336.1,0.59959]
[1737026601017,6.45554701,3336.2,3336.1,0.59959]
[1737026601319,5.85596701,3336.2,3336.0,0.5996]
[1737026601514,6.45555701,3336.2,3336.0,0.5996]
[1737026601722,0.59959,3336.1,3336.0,0.5996]
[1737026602219,3.2078,3336.4,3335.9,1.316]
[1737026602420,0.59959,3336.1,3336.0,0.5996]
[1737026602922,0.59959,3336.1,3335.9,1.91562]
[1737026603121,0.59961,3336.0,3335.9,1.316]
[1737026603315,0.59961,3336.0,3335.5,3.2078]
[1737026603316,9.06376701,3336.4,3335.5,3.2078]
[1737026603518,0.4746,3335.9,3335.5,4.5238]
[1737026603914,0.59968,3335.6,3335.5,5.1235]
[1737026604219,0.59967,3335.7,3335.5,5.1235]
[1737026604427,0.59968,3335.6,3335.5,3.2078]
[1737026604622,0.4662,3335.8,3335.5,4.5248]
[1737026604921,0.59968,3335.6,3335.5,3.2078]
[1737026605119,0.5997,3335.5,3335.4,1.317]
[1737026605423,3.8075,3335.6,3335.4,1.317]
[1737026605617,3.2078,3335.6,3335.4,1.317]
[1737026605822,0.5997,3335.5,3335.4,1.317]
[1737026606121,3.2078,3335.6,3335.5,0.5997]
[1737026606825,5.85596701,3335.8,3335.7,0.59967]
[1737026607119,9.06376701,3336.1,3335.5,0.4731]
[1737026607313,9.66336701,3336.1,3336.0,0.59961]
[1737026607517,9.06376701,3336.1,3335.5,0.4731]
[1737026607815,9.66337701,3336.1,3336.0,0.59961]
[1737026608015,9.66337701,3336.1,3335.5,1.97233]
[1737026608016,0.59962,3336.0,3335.9,0.59962]
[1737026608229,3.2078,3336.1,3335.5,0.4731]
[1737026608516,0.59968,3335.7,3335.5,0.59968]
[1737026608724,0.59968,3335.6,3335.5,0.59968]
[1737026609417,3.2078,3336.1,3335.5,1.49926]
[1737026609624,0.59962,3336.0,3335.9,0.59962]
[1737026610123,3.8074,3336.1,3336.0,0.59961]
[1737026610319,3.2078,3336.1,3336.0,0.59961]
[1737026611326,3.2078,3336.1,3335.9,0.4776]
[1737026611529,0.59963,3335.9,3335.8,1.07623]
[1737026611713,0.59963,3335.9,3335.8,0.4766]
[1737026611919,0.59967,3335.7,3335.6,0.59967]
[1737026612217,0.59966,3335.8,3335.7,0.59966]
[1737026612412,3.2078,3336.1,3335.2,0.4766]
[1737026612628,3.2078,3335.6,3335.1,1.91676]
[1737026612814,3.2078,3335.6,3335.1,1.317]
[1737026613021,0.59976,3335.2,3335.1,1.91676]
[1737026613330,0.59976,3335.2,3335.1,1.91677]
[1737026613526,0.59976,3335.2,3335.1,1.91676]
[1737026613715,0.59976,3335.2,3335.1,1.91677]
[1737026614127,0.59975,3335.3,3335.2,0.59974]
[1737026614525,0.59976,3335.2,3335.1,1.317]
[1737026614921,0.59976,3335.2,3335.1,1.91677]
[1737026615121,0.485,3335.5,3334.8,0.4692]
[1737026615329,0.485,3335.5,3334.9,1.9168]
[1737026615330,0.5998,3335.0,3334.9,1.9168]
[1737026617224,0.5998,3335.0,3334.9,1.317]
[1737026617728,0.59985,3334.7,3334.6,3.80766]
[1737026617932,0.59986,3334.6,3334.5,1.317]
[1737026618119,0.5999,3334.4,3334.3,0.4861]
[1737026618324,0.5999,3334.4,3334.3,1.8031]
[1737026618629,0.5999,3334.4,3334.3,1.317]
[1737026619023,0.59986,3334.6,3334.1,0.59995]
[1737026619222,0.59986,3334.6,3334.1,1.91695]
[1737026619223,0.4825,3334.6,3334.1,1.91695]
[1737026619433,0.59993,3334.3,3334.1,1.91694]
[1737026620321,0.59992,3334.3,3334.2,0.59992]
[1737026620529,0.59992,3334.3,3334.1,1.91694]
[1737026620728,0.59994,3334.2,3334.1,1.317]
[1737026620929,2.09959,3334.5,3333.9,3.80779]
[1737026621129,0.59997,3334.0,3333.9,3.2078]
[1737026621332,0.59997,3334.0,3333.9,4.5248]
[1737026621635,0.59996,3334.1,3334.0,0.59996]
[1737026622036,0.59997,3334.0,3333.9,4.5248]
[1737026622330,0.59996,3334.1,3333.9,4.5248]
[1737026622530,0.4791,3334.3,3334.0,0.59996]
[1737026622531,0.59995,3334.2,3334.0,0.59996]
[1737026622835,0.59995,3334.1,3333.9,5.12478]
[1737026623030,0.4791,3334.3,3334.0,0.59996]
[1737026623031,0.59995,3334.2,3334.0,0.59996]
[1737026623232,0.59995,3334.2,3333.9,4.5248]
[1737026623233,0.4791,3334.3,3333.9,4.5248]
[1737026623430,0.4791,3334.3,3334.2,0.59994]
[1737026624226,0.4791,3334.3,3334.1,1.91694]
[1737026624436,0.4791,3334.3,3334.1,1.317]
[1737026624736,0.59993,3334.2,3334.1,1.91695]
[1737026625139,0.59993,3334.2,3334.1,1.317]
[1737026625833,4.28683,3334.3,3334.1,1.91695]
[1737026626029,3.6869,3334.3,3333.6,3.2078]
[1737026626233,3.6869,3334.3,3333.7,1.317]
[1737026626435,0.59994,3334.2,3334.1,0.59995]
[1737026626834,0.59994,3334.2,3334.0,0.59996]
[1737026627131,0.59994,3334.2,3333.7,1.317]
[1737026627132,0.59993,3334.2,3333.7,1.317]
[1737026627331,3.6869,3334.3,3333.7,1.317]
[1737026627639,4.28683,3334.3,3334.1,0.59994]
[1737026627937,0.59994,3334.2,3333.9,0.59997]
[1737026628238,3.6869,3334.3,3333.7,1.317]
[1737026628434,0.59994,3334.2,3334.1,0.59994]
[1737026628636,3.6869,3334.3,3334.2,0.59994]
[1737026628837,4.28682,3334.3,3334.2,0.59994]
[1737026629141,3.6869,3334.3,3334.2,0.59994]
[1737026629341,0.59994,3334.2,3334.1,0.59994]
[1737026629536,3.6869,3334.3,3334.2,0.59994]
[1737026629738,0.59989,3334.5,3334.1,2.09983]
[1737026629939,3.2078,3334.7,3334.1,1.49988]
[1737026630238,3.80765,3334.7,3334.6,0.59986]
[1737026630639,0.59987,3334.6,3334.5,0.59987]
[1737026631035,3.2078,3334.7,3334.2,0.489]
[1737026631237,0.5999,3334.5,3334.4,0.59989]
[1737026631439,3.2078,3334.7,3334.2,0.489]
[1737026631734,0.59975,3335.3,3335.2,0.59974]
[1737026631938,0.59977,3335.2,3335.1,0.59976]
[1737026632139,0.59977,3335.1,3335.0,1.298]
[1737026632339,0.59977,3335.1,3335.0,1.89779]
[1737026632539,9.06376701,3335.6,3335.0,1.298]
[1737026632847,0.59972,3335.5,3335.4,0.59971]
[1737026633043,0.59974,3335.4,3335.3,0.59973]
[1737026633241,0.59977,3335.2,3335.1,0.59975]
[1737026633940,0.59977,3335.1,3335.0,1.89778]
[1737026634739,3.80757,3335.1,3335.0,1.298]
[1737026635044,3.2078,3335.1,3334.4,1.7748]
[1737026635241,0.59988,3334.5,3334.4,1.298]
[1737026636740,3.2078,3334.7,3333.9,0.4768]
[1737026637040,0.59997,3334.0,3333.9,0.4768]
[1737026637246,0.59996,3334.1,3334.0,0.59996]
[1737026637641,3.6593,3334.3,3334.0,0.59997]
[1737026637844,3.2078,3334.3,3333.9,0.4768]
[1737026638349,3.2078,3334.3,3334.1,0.59995]
[1737026638350,0.59995,3334.2,3334.1,0.59995]
[1737026638644,3.80773,3334.3,3334.1,0.59995]
[1737026638843,0.59994,3334.2,3334.1,0.59995]
[1737026639246,3.2078,3334.3,3333.9,0.4768]
[1737026639445,0.59994,3334.2,3334.1,0.59995]
[1737026639747,0.59996,3334.1,3334.0,0.59997]
[1737026639943,3.80773,3334.3,3334.2,0.59994]
[1737026640149,0.59994,3334.2,3334.1,0.59994]
[1737026640446,3.2078,3334.7,3334.1,2.82251708]
[1737026640843,0.59987,3334.6,3334.5,0.59987]
[1737026641041,0.59987,3334.6,3334.5,1.298]
[1737026641455,0.59987,3334.6,3334.5,1.89788]
[1737026641745,0.59987,3334.6,3334.5,1.298]
[1737026642143,3.2078,3334.7,3334.6,0.59986]
[1737026642554,3.80765,3334.7,3334.6,0.59986]
[1737026642745,3.80765,3334.7,3334.5,1.89787]
[1737026643648,3.2078,3334.7,3334.6,0.59986]
[1737026644049,3.80765,3334.7,3334.6,0.59986]
[1737026644351,3.2078,3334.7,3334.6,0.59986]
[1737026644946,3.80764,3334.7,3334.6,0.59986]
[1737026645146,3.2078,3334.7,3334.6,0.59986]
[1737026645550,3.2078,3334.7,3334.6,1.05076]
[1737026645853,3.2078,3334.7,3334.6,1.53106]
[1737026646357,0.59982,3334.9,3334.8,0.59983]
[1737026646549,0.59982,3334.9,3334.6,0.9312]
[1737026646851,0.59982,3334.9,3334.5,4.12051708]
[1737026646852,0.59986,3334.6,3334.5,1.89787]
[1737026647048,1.49944,3335.1,3334.5,1.298]
[1737026647250,3.2078,3335.2,3334.5,1.298]
[1737026647449,0.59986,3334.6,3334.5,1.298]
[1737026647651,0.59986,3334.6,3334.5,1.89788]
[1737026647852,3.2078,3334.8,3333.8,5.66952]
[1737026648047,3.2078,3334.4,3333.9,1.298]
[1737026648254,1.9928,3334.3,3333.8,4.76949]
[1737026648553,3.80777,3334.0,3333.9,1.298]
[1737026648759,0.59997,3334.0,3333.9,1.298]
[1737026648955,3.80777,3334.0,3333.9,1.298]
[1737026649257,0.59997,3334.0,3333.9,1.89799]
[1737026649459,0.493,3334.3,3333.9,1.298]
[1737026649663,0.59994,3334.2,3334.1,0.59993]
[1737026649860,0.493,3334.3,3333.9,1.298]
[1737026650062,0.59995,3334.2,3334.1,0.59993]
[1737026650969,0.59997,3334.0,3333.9,1.89798]
[1737026651169,0.59997,3334.0,3333.9,1.298]
[1737026651763,0.59994,3334.2,3334.1,0.59993]
[1737026653261,0.493,3334.3,3333.5,10.792]
[1737026653464,3.2078,3334.0,3333.6,1.298]
[1737026653668,3.2078,3334.0,3333.5,13.18557486]
[1737026653669,3.2078,3334.0,3333.5,10.792]
[1737026653865,0.60005,3333.6,3333.5,1.89805]
[1737026654271,0.60005,3333.6,3333.5,1.298]
[1737026654465,3.80785,3333.6,3333.5,1.298]
[1737026655365,3.80785,3333.6,3333.5,1.89806]
[1737026655770,3.80785,3333.6,3333.5,1.298]
[1737026657169,3.2078,3333.6,3333.2,2.39357486]
[1737026657372,3.2078,3333.6,3333.1,1.295]
[1737026657570,3.2078,3333.6,3333.2,2.39357486]
[1737026657770,3.80785,3333.6,3333.5,0.60006]
[1737026658076,0.60009,3333.4,3333.3,0.60008]
[1737026658576,6.45596701,3333.9,3333.8,0.60001]
[1737026658774,5.85596701,3333.9,3333.8,4.28858486]
[1737026659469,0.59994,3334.2,3334.1,0.59995]
[1737026660271,0.59995,3334.1,3334.0,0.59996]
[1737026660575,0.59992,3334.3,3333.9,0.59999]
[1737026660771,3.678,3334.4,3333.9,0.59999]
[1737026660772,0.59998,3334.0,3333.9,0.59999]
[1737026661276,3.678,3334.4,3333.8,3.68857486]
[1737026661471,5.85596701,3334.4,3334.3,2.99349486]
[1737026662976,0.59983,3334.8,3334.3,2.99349486]
[1737026663278,0.59982,3334.9,3334.8,0.59982]
[1737026663479,0.59982,3334.9,3334.8,1.295]
[1737026663671,3.80762,3334.9,3334.8,1.295]
[1737026664480,3.80762,3334.9,3334.5,1.295]
[1737026664481,1.49957,3334.8,3334.5,1.295]
[1737026664678,0.59986,3334.6,3334.5,1.295]
[1737026664875,0.59986,3334.6,3334.5,1.89488]
[1737026665076,0.59986,3334.6,3334.5,1.295]
[1737026665275,1.05256,3334.6,3334.5,1.295]
[1737026666768,1.05256,3334.6,3334.5,1.89488]
[1737026667573,5.85715127,3334.7,3334.6,0.59986]
[1737026667775,5.85715127,3334.7,3334.6,3.42705768]
[1737026668081,5.85715127,3334.7,3334.6,4.35605768]
[1737026668780,6.45691127,3335.2,3334.6,4.35605768]
[1737026669081,5.85715127,3335.2,3335.0,0.59978]
[1737026669380,6.45692127,3335.2,3335.0,0.59978]
[1737026669581,5.85715127,3335.2,3335.0,0.59978]
[1737026669782,0.59977,3335.1,3335.0,0.59978]
[1737026670371,0.59984,3334.8,3334.6,0.929]
[1737026670578,0.59984,3334.8,3334.7,1.294]
[1737026671384,0.59984,3334.8,3334.7,1.89384]
[1737026671579,0.59982,3334.9,3334.8,0.59982]
[1737026672279,6.45697127,3334.9,3334.7,1.294]
[1737026672471,0.59983,3334.8,3334.7,1.89384]
[1737026673477,5.85715127,3335.0,3334.7,1.294]
[1737026673781,5.85715127,3335.0,3334.9,0.59981]
[1737026673980,5.85715127,3335.0,3334.9,3.80761]
[1737026674182,5.85715127,3335.0,3334.9,8.80761]
[1737026674379,5.85715127,3335.0,3334.9,3.80761]
[1737026675386,0.4512,3335.8,3335.7,0.59967]
[1737026675686,0.4512,3335.8,3335.7,1.89367]
[1737026675879,5.85715127,3335.9,3335.8,0.59965]
[1737026676080,5.85715127,3335.9,3335.8,1.04465]
[1737026676685,3.2078,3336.3,3335.8,0.445]
[1737026676982,0.59958,3336.2,3335.9,1.294]
[1737026677285,0.59961,3336.0,3335.9,1.294]
[1737026677585,0.59965,3335.8,3335.6,1.294]
[1737026677782,0.59961,3336.1,3335.9,0.59962]
[1737026678085,6.82755127,3336.2,3335.6,1.294]
[1737026678275,3.80743,3335.9,3335.8,0.59964]
[1737026678480,3.2078,3335.9,3335.8,0.59964]
[1737026678679,0.59964,3335.9,3335.8,0.59964]
[1737026679875,3.80744,3335.9,3335.8,0.59964]
[1737026682283,3.80743,3335.9,3335.8,0.59964]
[1737026683689,3.2078,3335.9,3335.6,1.294]
[1737026683880,0.59967,3335.7,3335.6,1.89367]
[1737026684182,0.59966,3335.8,3335.7,0.59965]
[1737026684981,0.59976,3335.3,3335.2,0.59975]
[1737026685183,0.59983,3334.9,3334.8,0.59981]
[1737026685485,0.9477,3335.2,3335.0,0.59977]
[1737026685678,3.6952,3335.7,3334.9,4.32670768]
[1737026685888,0.59973,3335.4,3335.3,0.59971]
[1737026686583,0.59976,3335.3,3335.2,0.59975]
[1737026686792,0.59976,3335.3,3334.8,0.59981]
[1737026686793,0.59983,3334.9,3334.8,0.59981]
[1737026687086,0.9344,3335.2,3334.8,1.294]
[1737026687281,0.59981,3335.0,3334.9,0.5998]
[1737026687479,0.59981,3334.9,3334.8,1.89381]
[1737026687986,4.1422,3335.2,3334.8,1.294]
[1737026688184,0.59977,3335.1,3335.0,0.59978]
[1737026689090,4.74196,3335.2,3335.1,0.59977]
[1737026689487,4.1422,3335.2,3334.8,1.29]
[1737026689685,4.1422,3335.2,3334.9,0.59979]
[1737026689887,0.5998,3335.0,3334.9,0.59979]
[1737026690996,4.26496,3335.2,3335.1,0.59977]
[1737026691686,3.2078,3335.2,3335.1,0.59977]
[1737026692392,3.2078,3335.2,3334.8,1.29]
[1737026692687,0.9093,3335.1,3334.5,0.59987]
[1737026692897,0.59986,3334.6,3334.5,1.88987]
[1737026693289,0.59986,3334.6,3334.5,1.29]
[1737026694688,0.59986,3334.6,3334.2,1.07353]
[1737026694893,0.59999,3333.9,3333.8,1.89]
[1737026695292,0.4786,3334.2,3333.7,5.5998506]
[1737026695490,2.09997,3333.9,3333.5,1.29]
[1737026695692,0.60004,3333.6,3333.5,1.29]
[1737026695894,0.60004,3333.6,3333.5,1.89006]
[1737026696297,0.60004,3333.6,3333.5,1.29]
[1737026697096,3.2078,3334.0,3333.8,0.59999]
[1737026697295,3.2078,3334.0,3333.7,2.3920506]
[1737026697491,3.2078,3334.0,3333.5,1.29]
[1737026697688,0.60004,3333.6,3333.5,1.29]
[1737026697897,3.2078,3334.0,3333.4,2.3920506]
[1737026698098,0.60006,3333.5,3333.4,3.6820506]
[1737026698897,0.6001,3333.3,3333.2,1.89011]
[1737026699094,3.2078,3333.6,3333.2,1.29]
[1737026699494,3.2078,3333.6,3333.5,0.60006]
[1737026700089,0.60006,3333.5,3333.4,2.9921106]
[1737026700292,3.2078,3333.6,3333.5,0.60006]
[1737026700494,1.49992,3334.1,3334.0,0.59995]
[1737026700495,0.59997,3334.1,3334.0,0.59995]
[1737026700694,5.85715127,3334.2,3334.1,0.59995]
[1737026701391,0.59995,3334.1,3334.0,6.8898506]
[1737026701592,0.59995,3334.1,3334.0,3.6820506]
[1737026701899,0.60001,3333.8,3333.7,3.4452706]
[1737026702098,3.2078,3334.1,3333.6,1.29]
[1737026702290,3.80783,3333.7,3333.6,1.29]
[1737026702802,3.2078,3333.7,3333.6,1.29]
[1737026702994,3.2078,3333.7,3333.6,1.89004]
[1737026703300,0.59995,3334.1,3334.0,0.59997]
[1737026703494,3.80774,3334.2,3334.1,0.59995]
[1737026703698,0.59996,3334.1,3334.0,0.59996]
[1737026704001,3.2078,3334.2,3333.9,2.3920506]
[1737026704196,3.80774,3334.2,3334.1,0.59995]
[1737026704398,3.2078,3334.2,3333.9,2.3920506]
[1737026704798,3.80775,3334.2,3334.1,0.59995]
[1737026704996,3.2078,3334.2,3334.1,0.59995]
[1737026705390,0.4643,3334.6,3333.9,2.82719626]
[1737026705391,3.2078,3334.6,3333.9,2.82719626]
[1737026705597,5.85715127,3334.8,3334.7,0.59985]
[1737026705798,5.85715127,3334.8,3334.7,1.89085]
[1737026706397,6.45698127,3334.8,3334.7,1.291]
[1737026706598,5.85715127,3334.8,3334.1,3.6594]
[1737026706896,2.91702,3334.7,3334.1,1.7416]
[1737026707201,0.59994,3334.2,3334.1,2.34154]
[1737026707404,0.59994,3334.2,3334.1,1.29]
[1737026707601,0.60004,3333.6,3333.5,4.69732809]
[1737026707797,0.60004,3333.6,3333.5,5.98732809]
[1737026708002,0.60004,3333.6,3333.5,1.29]
[1737026708303,1.3961,3333.8,3333.5,1.29]
[1737026708497,0.60004,3333.6,3333.5,1.29]
[1737026710906,1.3961,3333.8,3333.1,3.80793]
[1737026710907,0.60012,3333.2,3333.1,3.80793]
[1737026711106,0.60001,3333.8,3333.7,0.60003]
[1737026711406,9.66495127,3333.9,3333.8,0.60001]
[1737026711903,0.60002,3333.8,3333.7,0.60001]
[1737026712698,3.2078,3333.9,3333.5,2.82719626]
[1737026712898,3.8078,3333.9,3333.8,0.60001]
[1737026713303,3.2078,3333.9,3333.5,2.82719626]
[1737026713511,1.49986,3334.2,3333.5,2.82719626]
[1737026713707,0.60001,3333.9,3333.5,2.82719626]
[1737026714005,0.4879,3334.3,3333.5,6.03499626]
[1737026714305,6.45703127,3334.5,3334.4,0.5999]
[1737026714501,5.85715127,3334.5,3334.4,0.5999]
[1737026714706,6.45703127,3334.5,3334.4,0.5999]
[1737026715103,0.59992,3334.3,3334.2,1.291]
[1737026715703,3.80772,3334.3,3334.2,1.291]
[1737026716008,3.80772,3334.3,3333.6,5.09783]
[1737026716206,0.60003,3333.7,3333.6,1.29]
[1737026716506,0.60004,3333.6,3333.5,1.89005]
[1737026716713,1.07544,3333.6,3333.5,1.89005]
[1737026717004,0.4754,3333.6,3333.5,0.60005]
[1737026717208,0.4754,3333.6,3333.2,1.97277]
[1737026717209,0.6001,3333.3,3333.2,0.6001]
[1737026717798,0.60012,3333.2,3333.1,3.2078]
[1737026718002,0.60012,3333.2,3333.1,4.5138]
[1737026718204,0.60012,3333.2,3333.1,3.2078]
[1737026718405,0.60012,3333.2,3333.1,3.80793]
[1737026718605,0.60012,3333.2,3333.1,3.2078]
[1737026719007,3.2078,3333.5,3333.0,1.306]
[1737026719306,3.2078,3333.5,3333.0,4.13319626]
[1737026719702,0.60011,3333.3,3333.2,0.6001]
[1737026720504,3.80787,3333.5,3333.4,0.60008]
[1737026720715,0.4754,3333.6,3333.1,3.6529]
[1737026721005,0.6001,3333.3,3333.2,0.60011]
[1737026721708,0.4754,3333.6,3333.3,0.60008]
[1737026721709,0.60006,3333.5,3333.3,0.60008]
[1737026721907,0.60008,3333.4,3333.3,0.60008]
[1737026722708,0.60009,3333.4,3333.3,0.60009]
[1737026722916,0.4754,3333.6,3333.1,3.6529]
[1737026723209,0.4754,3333.6,3333.4,0.60007]
[1737026723210,0.60007,3333.5,3333.4,0.60007]
[1737026723409,0.60008,3333.5,3333.4,0.60007]
[1737026723608,0.60003,3333.7,3333.6,0.60003]
[1737026724316,3.2078,3333.9,3333.8,0.60001]
[1737026724610,0.4808,3334.6,3333.8,4.13319626]
[1737026724812,0.59993,3334.3,3334.2,0.59992]
[1737026725010,6.45704127,3334.5,3334.4,0.5999]
[1737026725711,6.45704127,3334.5,3334.3,0.59991]
[1737026725712,0.59992,3334.4,3334.3,0.59991]
[1737026726821,0.59985,3334.7,3334.3,3.2078]
[1737026727004,0.9301,3334.8,3334.7,0.59985]
[1737026727005,0.4584,3334.8,3334.7,0.59985]
[1737026727209,0.4584,3334.8,3334.7,1.90585]
[1737026727713,6.45696127,3334.9,3334.7,1.306]
[1737026727714,5.85715127,3334.9,3334.7,1.306]
[1737026728014,5.85715127,3334.9,3334.8,0.59983]
[1737026728203,0.59977,3335.2,3334.7,4.9787]
[1737026728407,0.59977,3335.2,3335.1,0.59977]
[1737026729712,0.5998,3335.1,3335.0,0.59979]
[1737026730912,0.59982,3334.9,3334.8,0.59981]
[1737026731116,0.59983,3334.8,3334.7,1.306]
[1737026731317,4.70727,3335.1,3334.5,0.59987]
[1737026731510,0.59986,3334.6,3334.5,0.59987]
[1737026731710,0.59986,3334.6,3334.5,1.306]
[1737026732415,1.08156,3334.6,3334.5,1.306]
[1737026733216,1.08156,3334.6,3334.5,1.90588]
[1737026733405,0.4817,3334.6,3334.5,1.90588]
[1737026733608,1.08156,3334.6,3334.5,1.306]
[1737026733811,1.08156,3334.6,3334.5,1.90588]
[1737026734714,0.4817,3334.6,3334.5,1.90588]
[1737026734916,1.08156,3334.6,3334.5,1.90588]
[1737026735311,1.08156,3334.6,3334.5,1.306]
[1737026737507,0.4817,3334.6,3334.0,2.82719626]
[1737026737719,0.59993,3334.2,3334.1,1.306]
[1737026738111,0.4904,3334.4,3333.9,3.2078]
[1737026738322,0.59997,3334.0,3333.9,3.2078]
[1737026739020,3.2078,3334.0,3333.6,2.82719626]
[1737026739320,0.60004,3333.6,3333.5,1.90605]
[1737026739625,0.60004,3333.7,3333.6,0.60003]
[1737026740212,0.60004,3333.7,3333.5,1.306]
[1737026740429,0.60004,3333.7,3333.6,0.60002]
[1737026741309,0.60002,3333.7,3333.6,0.60002]
[1737026742515,0.60004,3333.6,3333.5,1.90605]
[1737026743519,0.60004,3333.6,3333.5,1.306]
[1737026744421,3.80784,3333.6,3333.5,1.306]
[1737026744620,3.2078,3333.6,3333.2,2.82719626]
[1737026744926,4.70794,3333.6,3333.1,0.4883]
[1737026745122,1.50018,3333.5,3333.2,1.306]
[1737026745425,3.2078,3333.6,3332.9,4.5138]
[1737026745621,1.5002,3333.4,3332.6,11.39921]
[1737026745819,0.6002,3332.7,3332.6,10.799]
[1737026746018,0.6002,3332.7,3332.6,12.105]